fUST/lending_fUST_20250115
["ID","MTS","AMOUNT","RATE_DAILY","PERIOD"]
[348984842,1736916640023,-500.0,0.00019315,3]
[348984843,1736916640033,-500.0,0.00019315,3]
[348984844,1736916640042,-500.0,0.00019315,3]
[348984845,1736916640052,-583.37836597,0.00019315,3]
[348984846,1736916640061,-583.49947871,0.00019373,2]
[348984848,1736916640072,-500.25885573,0.00019373,2]
[348984849,1736916640082,-500.0,0.00019373,2]
[348984850,1736916640091,-950.0067386,0.00019374,2]
[348984851,1736916640101,-151.0,0.000194,2]
[348984852,1736916640111,-243.22012993,0.000194,2]
[348984854,1736916640121,-243.22012971,0.000194,2]
[348984855,1736916640130,-243.22012971,0.000194,2]
[348984857,1736916640140,-564.33329284,0.00019417,2]
[348984858,1736916640253,-243.22012971,0.00019417,2]
[348984859,1736916640264,-270.726,0.00019443,2]
[348984860,1736916640274,-533.09515519,0.00019452,3]
[348984861,1736916640283,-151.0,0.00019452,2]
[348984862,1736916640294,-151.0,0.00019452,2]
[348984863,1736916640304,-606.99010736,0.00019452,3]
[348984864,1736916640313,-500.0,0.00019452,3]
[348984865,1736916640323,-500.0,0.00019452,3]
[348984866,1736916640332,-500.0,0.00019452,3]
[348984867,1736916640342,-213.910605,0.00019452,2]
[348984868,1736916640352,-388.26049023,0.00019452,3]
[348984869,1736916640361,-500.0,0.00019452,3]
[348984870,1736916640371,-151.0,0.00019452,2]
[348984871,1736916640381,-500.0,0.00019452,3]
[348984872,1736916640390,-500.0,0.00019452,3]
[348984873,1736916640399,-500.0,0.00019452,3]
[348984874,1736916640409,-500.0,0.00019452,3]
[348984875,1736916640420,-742.49,0.00019452,3]
[348984876,1736916640431,-500.0,0.00019452,3]
[348984877,1736916640440,-500.0,0.00019452,3]
[348984878,1736916640449,-500.0,0.00019452,3]
[348984879,1736916640459,-151.0,0.00019452,2]
[348984880,1736916640468,-500.0,0.00019452,3]
[348984881,1736916640479,-500.0,0.00019452,3]
[348984882,1736916640488,-500.0,0.00019452,3]
[348984883,1736916640497,-500.0,0.00019452,3]
[348984884,1736916640506,-500.0,0.00019452,3]
[348984885,1736916640516,-500.0,0.00019452,3]
[348984886,1736916640525,-500.0,0.00019452,3]
[348984887,1736916640534,-631.69,0.00019452,3]
[348984888,1736916640543,-500.0,0.00019452,3]
[348984889,1736916640553,-151.0,0.00019452,2]
[348984890,1736916640562,-518.41333556,0.00019452,3]
[348984891,1736916640571,-151.0,0.00019452,2]
[348984892,1736916640581,-500.0,0.00019452,3]
[348984893,1736916640590,-550.31,0.00019452,3]
[348984894,1736916640600,-500.0,0.00019452,3]
[348984895,1736916640610,-500.0,0.00019452,3]
[348984896,1736916640619,-500.0,0.00019452,3]
[348984897,1736916640629,-500.0,0.00019452,3]
[348984898,1736916640640,-500.0,0.00019452,3]
[348984899,1736916640650,-500.0,0.00019452,3]
[348984900,1736916640659,-500.0,0.00019452,3]
[348984901,1736916640668,-500.0,0.00019452,3]
[348984902,1736916640678,-500.0,0.00019452,3]
[348984903,1736916640688,-500.0,0.00019452,3]
[348984904,1736916640698,-500.0,0.00019452,3]
[348984905,1736916640707,-500.0,0.00019452,3]
[348984906,1736916640716,-500.0,0.00019452,3]
[348984907,1736916640726,-224.20323058,0.00019452,3]
[348984908,1736916640735,-500.0,0.00019452,3]
[348984909,1736916640745,-691.61,0.00019452,3]
[348984910,1736916640754,-500.0,0.00019452,3]
[348984911,1736916640763,-500.0,0.00019452,3]
[348984912,1736916640773,-500.0,0.00019452,3]
[348984913,1736916640783,-500.0,0.00019452,3]
[348984914,1736916640792,-500.0,0.00019452,3]
[348984915,1736916640802,-533.46329053,0.00019452,3]
[348984916,1736916640811,-510.54,0.00019452,3]
[348984917,1736916640821,-500.0,0.00019452,3]
[348984918,1736916640831,-500.0,0.00019452,3]
[348984919,1736916640841,-474.99160156,0.00019452,3]
[348984920,1736916640850,-500.0,0.00019452,3]
[348984921,1736916640859,-474.469349,0.00019452,2]
[348984922,1736916640869,-474.469349,0.00019452,2]
[348984923,1736916640878,-500.0,0.00019452,3]
[348984924,1736916640888,-500.0,0.00019452,3]
[348984925,1736916640897,-205.204769,0.00019452,2]
[348984926,1736916640907,-205.204769,0.00019452,2]
[348984927,1736916640917,-205.204769,0.00019452,2]
[348984928,1736916640926,-205.204769,0.00019452,2]
[348984929,1736916640936,-500.0,0.00019452,3]
[348984930,1736916640946,-500.0,0.00019452,3]
[348984931,1736916640960,-500.0,0.00019452,3]
[348984932,1736916640969,-500.0,0.00019452,3]
[348984933,1736916640979,-500.0,0.00019452,3]
[348984934,1736916640989,-500.0,0.00019452,3]
[348984935,1736916641001,-500.0,0.00019452,3]
[348984936,1736916641010,-367.54671706,0.00019452,3]
[348984937,1736916641021,-500.0,0.00019452,3]
[348984938,1736916641031,-500.0,0.00019452,3]
[348984939,1736916641042,-500.0,0.00019452,3]
[348984940,1736916641053,-500.0,0.00019452,3]
[348984941,1736916641063,-500.0,0.00019452,3]
[348984942,1736916641074,-500.0,0.00019452,3]
[348984943,1736916641083,-500.0,0.00019452,3]
[348984944,1736916641095,-500.0,0.00019452,3]
[348984945,1736916641106,-500.0,0.00019452,3]
[348984946,1736916641116,-633.68,0.00019452,2]
[348984947,1736916641126,-228.219024,0.00019452,2]
[348984948,1736916641137,-228.219024,0.00019452,2]
[348984949,1736916641147,-228.219024,0.00019452,2]
[348984950,1736916641158,-228.219024,0.00019452,2]
[348984951,1736916641168,-500.0,0.00019452,3]
[348984952,1736916641177,-500.0,0.00019452,3]
[348984953,1736916641187,-3854.09,0.00019452,3]
[348984954,1736916641198,-168.040208,0.00019452,2]
[348984955,1736916641207,-168.040208,0.00019452,2]
[348984956,1736916641217,-168.040208,0.00019452,2]
[348984957,1736916641226,-168.040208,0.00019452,2]
[348984958,1736916641237,-500.0,0.00019452,3]
[348984959,1736916641247,-500.0,0.00019452,3]
[348984960,1736916641256,-4218.29,0.00019452,3]
[348984961,1736916641266,-500.0,0.00019452,3]
[348984962,1736916641276,-500.0,0.00019452,3]
[348984963,1736916641286,-500.0,0.00019452,3]
[348984964,1736916641296,-510.52,0.00019452,3]
[348984965,1736916641305,-500.0,0.00019452,3]
[348984966,1736916641315,-500.0,0.00019452,3]
[348984967,1736916641324,-500.0,0.00019452,3]
[348984968,1736916641333,-500.0,0.00019452,3]
[348984969,1736916641342,-926.75,0.00019452,3]
[348984970,1736916641352,-506.88,0.00019452,3]
[348984971,1736916641362,-237.57294354,0.00019452,3]
[348984972,1736916641372,-500.0,0.00019452,3]
[348984973,1736916641382,-500.0,0.00019452,3]
[348984974,1736916641391,-1293.58,0.00019452,3]
[348984975,1736916641401,-500.0,0.00019452,3]
[348984976,1736916641411,-500.0,0.00019452,3]
[348984977,1736916641421,-500.0,0.00019452,3]
[348984978,1736916641430,-500.0,0.00019452,3]
[348984979,1736916641439,-805.03,0.00019452,3]
[348984980,1736916641450,-500.0,0.00019452,3]
[348984981,1736916641459,-500.0,0.00019452,3]
[348984982,1736916641468,-500.0,0.00019452,3]
[348984983,1736916641478,-500.0,0.00019452,3]
[348984984,1736916641487,-13667.5,0.00019452,3]
[348984985,1736916641496,-489.02637761,0.00019452,3]
[348984986,1736916641506,-500.0,0.00019452,3]
[348984987,1736916641515,-500.0,0.00019452,3]
[348984988,1736916641524,-500.0,0.00019452,3]
[348984989,1736916641534,-1080.86,0.00019452,3]
[348984990,1736916641544,-655.22,0.00019452,3]
[348984991,1736916641554,-500.0,0.00019452,3]
[348984992,1736916641563,-500.0,0.00019452,3]
[348984993,1736916641572,-500.0,0.00019452,3]
[348984994,1736916641582,-500.0,0.00019452,3]
[348984995,1736916641591,-500.0,0.00019452,3]
[348984996,1736916641600,-537.57030159,0.00019452,3]
[348984997,1736916641610,-500.0,0.00019452,3]
[348984998,1736916641619,-500.0,0.00019452,3]
[348984999,1736916641629,-1373.43,0.00019452,3]
[348985000,1736916641639,-500.0,0.00019452,3]
[348985001,1736916641649,-500.0,0.00019452,3]
[348985002,1736916641658,-1827.85,0.00019452,3]
[348985003,1736916641668,-500.0,0.00019452,3]
[348985004,1736916641677,-500.0,0.00019452,3]
[348985005,1736916641686,-500.0,0.00019452,3]
[348985006,1736916641697,-500.0,0.00019452,3]
[348985007,1736916641706,-500.0,0.00019452,3]
[348985008,1736916641715,-549.02,0.00019452,3]
[348985009,1736916641725,-599.91,0.00019452,3]
[348985010,1736916641735,-500.0,0.00019452,3]
[348985011,1736916641744,-500.0,0.00019452,3]
[348985012,1736916641754,-712.76,0.00019452,3]
[348985013,1736916641764,-500.0,0.00019452,3]
[348985014,1736916641773,-500.0,0.00019452,3]
[348985015,1736916641783,-151.0,0.00019452,2]
[348985016,1736916641792,-151.0,0.00019452,2]
[348985017,1736916641802,-807.76,0.00019452,3]
[348985018,1736916641811,-500.0,0.00019452,3]
[348985019,1736916641820,-161.204898,0.00019452,2]
[348985020,1736916641829,-500.0,0.00019452,3]
[348985021,1736916641838,-684.89,0.00019452,3]
[348985022,1736916641848,-151.0,0.00019452,2]
[348985023,1736916641859,-500.0,0.00019452,3]
[348985024,1736916641870,-151.0,0.00019452,2]
[348985025,1736916641880,-151.0,0.00019452,2]
[348985026,1736916641890,-151.0,0.00019452,2]
[348985027,1736916641902,-500.0,0.00019452,3]
[348985028,1736916641912,-414.4185829,0.00019452,3]
[348985029,1736916641921,-151.0,0.00019452,2]
[348985030,1736916641931,-151.0,0.00019452,2]
[348985031,1736916641941,-1567.61,0.00019452,3]
[348985032,1736916641952,-500.0,0.00019452,3]
[348985033,1736916641963,-174.650764,0.00019452,2]
[348985034,1736916641973,-500.0,0.00019452,3]
[348985035,1736916641982,-926.078604,0.00019452,2]
[348985036,1736916641991,-926.078604,0.00019452,2]
[348985037,1736916642001,-926.078604,0.00019452,2]
[348985038,1736916642010,-151.0,0.00019452,2]
[348985039,1736916642019,-926.078604,0.00019452,2]
[348985040,1736916642028,-151.0,0.00019452,2]
[348985041,1736916642038,-500.0,0.00019452,3]
[348985042,1736916642047,-500.0,0.00019452,3]
[348985043,1736916642056,-500.0,0.00019452,3]
[348985044,1736916642065,-500.0,0.00019452,3]
[348985045,1736916642074,-500.0,0.00019452,3]
[348985046,1736916642083,-757.07,0.00019452,3]
[348985047,1736916642093,-500.0,0.00019452,3]
[348985048,1736916642102,-706.38,0.00019452,3]
[348985049,1736916642112,-500.0,0.00019452,3]
[348985050,1736916642121,-158.35428837,0.00019452,3]
[348985051,1736916642130,-500.0,0.00019452,3]
[348985052,1736916642140,-370.33028021,0.00019452,3]
[348985053,1736916642150,-500.0,0.00019452,3]
[348985054,1736916642159,-500.0,0.00019452,3]
[348985055,1736916642168,-500.0,0.00019452,3]
[348985056,1736916642177,-500.0,0.00019452,3]
[348985057,1736916642186,-3983.37,0.00019452,3]
[348985058,1736916642197,-397.84089222,0.00019452,3]
[348985059,1736916642207,-1461.541656,0.00019452,2]
[348985060,1736916642216,-500.0,0.00019452,3]
[348985061,1736916642225,-500.0,0.00019452,3]
[348985062,1736916642235,-1461.541656,0.00019452,2]
[348985063,1736916642244,-500.0,0.00019452,3]
[348985064,1736916642253,-500.0,0.00019452,3]
[348985065,1736916642262,-500.0,0.00019452,3]
[348985066,1736916642271,-4712.04,0.00019452,3]
[348985067,1736916642280,-5135.68,0.00019452,2]
[348985068,1736916642290,-624.76,0.00019452,3]
[348985069,1736916642299,-500.0,0.00019452,3]
[348985070,1736916642308,-673.49,0.00019452,3]
[348985071,1736916642317,-500.0,0.00019452,3]
[348985072,1736916642326,-500.0,0.00019452,3]
[348985073,1736916642335,-610.45,0.00019452,3]
[348985074,1736916642345,-500.0,0.00019452,3]
[348985075,1736916642354,-550.77,0.00019452,3]
[348985076,1736916642363,-2486.58,0.00019452,3]
[348985077,1736916642372,-151.0,0.00019452,2]
[348985078,1736916642381,-151.0,0.00019452,2]
[348985079,1736916642390,-500.0,0.00019452,3]
[348985080,1736916642399,-500.0,0.00019452,3]
[348985081,1736916642409,-500.0,0.00019452,3]
[348985082,1736916642419,-420.0,0.00019454,2]
[348985083,1736916642428,-500.0,0.00019473,2]
[348985084,1736916642437,-153.94405258,0.00019473,2]
[348985085,1736916642448,-500.0,0.00019473,2]
[348985086,1736916642458,-501.53792323,0.00019473,2]
[348985087,1736916642467,-266.6529432,0.00019473,2]
[348985088,1736916642477,-267.41560103,0.00019473,2]
[348985089,1736916642487,-1461.541656,0.00019473,2]
[348985090,1736916642496,-1461.541656,0.00019473,2]
[348985091,1736916642506,-151.0,0.000195,2]
[348985092,1736916642516,-151.0,0.00019589,2]
[348985093,1736916642525,-500.0,0.00019589,3]
[348985094,1736916642535,-500.0,0.00019589,3]
[348985095,1736916642544,-153.908408,0.00019589,2]
[348985096,1736916642553,-500.0,0.00019589,3]
[348985097,1736916642563,-517.70540836,0.00019589,3]
[348985098,1736916642572,-500.0,0.00019589,3]
[348985099,1736916642582,-742.49,0.00019589,3]
[348985100,1736916642591,-500.0,0.00019589,3]
[348985101,1736916642602,-378.75715303,0.00019589,3]
[348985102,1736916642611,-500.0,0.00019589,3]
[348985103,1736916642621,-151.0,0.00019589,2]
[348985104,1736916642631,-151.0,0.00019589,2]
[348985105,1736916642641,-500.0,0.00019589,3]
[348985106,1736916642652,-500.0,0.00019589,3]
[348985108,1736916642662,-500.0,0.00019589,3]
[348985109,1736916642671,-516.81348195,0.00019589,3]
[348985110,1736916642680,-500.0,0.00019589,3]
[348985111,1736916642689,-631.69,0.00019589,3]
[348985112,1736916642699,-500.0,0.00019589,3]
[348985113,1736916642709,-151.0,0.00019589,2]
[348985115,1736916642718,-151.0,0.00019589,2]
[348985118,1736916642727,-151.0,0.00019589,2]
[348985120,1736916642737,-230.51795,0.00019589,2]
[348985122,1736916642746,-506.6807908,0.00019589,3]
[348985125,1736916642756,-550.31,0.00019589,3]
[348985127,1736916642765,-500.0,0.00019589,3]
[348985129,1736916642775,-500.0,0.00019589,3]
[348985132,1736916642785,-500.0,0.00019589,3]
[348985134,1736916642794,-500.0,0.00019589,3]
[348985136,1736916642803,-500.0,0.00019589,3]
[348985138,1736916642812,-500.0,0.00019589,3]
[348985139,1736916642822,-500.0,0.00019589,3]
[348985140,1736916642831,-500.0,0.00019589,3]
[348985142,1736916642841,-500.0,0.00019589,3]
[348985144,1736916642850,-500.0,0.00019589,3]
[348985146,1736916642859,-500.0,0.00019589,3]
[348985147,1736916642869,-515.12729009,0.00019589,3]
[348985148,1736916642880,-274.17657202,0.00019589,3]
[348985150,1736916642890,-691.61,0.00019589,3]
[348985152,1736916642899,-500.0,0.00019589,3]
[348985153,1736916642908,-580.99299248,0.00019589,3]
[348985157,1736916643020,-500.0,0.00019589,3]
[348985158,1736916643031,-500.0,0.00019589,3]
[348985159,1736916643042,-500.0,0.00019589,3]
[348985160,1736916643051,-500.0,0.00019589,3]
[348985161,1736916643061,-500.0,0.00019589,3]
[348985162,1736916643071,-500.0,0.00019589,3]
[348985163,1736916643081,-474.469349,0.00019589,2]
[348985164,1736916643091,-474.469349,0.00019589,2]
[348985165,1736916643102,-474.469349,0.00019589,2]
[348985167,1736916643111,-474.469349,0.00019589,2]
[348985169,1736916643121,-500.0,0.00019589,3]
[348985170,1736916643131,-500.0,0.00019589,3]
[348985171,1736916643142,-205.204769,0.00019589,2]
[348985172,1736916643151,-205.204769,0.00019589,2]
[348985173,1736916643163,-500.0,0.00019589,3]
[348985174,1736916643173,-500.0,0.00019589,3]
[348985175,1736916643183,-500.0,0.00019589,3]
[348985176,1736916643193,-500.0,0.00019589,3]
[348985177,1736916643203,-500.0,0.00019589,3]
[348985178,1736916643213,-500.0,0.00019589,3]
[348985179,1736916643223,-500.0,0.00019589,3]
[348985180,1736916643234,-500.0,0.00019589,3]
[348985181,1736916643244,-508.36184328,0.00019589,3]
[348985182,1736916643254,-500.0,0.00019589,3]
[348985183,1736916643263,-500.0,0.00019589,3]
[348985184,1736916643273,-633.68,0.00019589,2]
[348985186,1736916643282,-228.219024,0.00019589,2]
[348985188,1736916643292,-228.219024,0.00019589,2]
[348985190,1736916643301,-500.0,0.00019589,3]
[348985192,1736916643311,-500.0,0.00019589,3]
[348985194,1736916643321,-3854.09,0.00019589,3]
[348985196,1736916643330,-168.040208,0.00019589,2]
[348985198,1736916643339,-168.040208,0.00019589,2]
[348985200,1736916643349,-168.040208,0.00019589,2]
[348985202,1736916643359,-168.040208,0.00019589,2]
[348985204,1736916643369,-500.0,0.00019589,3]
[348985205,1736916643378,-4218.29,0.00019589,3]
[348985206,1736916643388,-500.0,0.00019589,3]
[348985207,1736916643397,-500.0,0.00019589,3]
[348985209,1736916643407,-506.11985996,0.00019589,3]
[348985211,1736916643417,-503.98,0.00019589,3]
[348985213,1736916643426,-926.75,0.00019589,3]
[348985215,1736916643436,-500.0,0.00019589,3]
[348985217,1736916643447,-500.0,0.00019589,3]
[348985219,1736916643456,-1293.58,0.00019589,3]
[348985220,1736916643466,-500.0,0.00019589,3]
[348985221,1736916643475,-303.15917089,0.00019589,3]
[348985222,1736916643485,-500.0,0.00019589,3]
[348985223,1736916643495,-805.03,0.00019589,3]
[348985224,1736916643504,-500.0,0.00019589,3]
[348985225,1736916643514,-500.0,0.00019589,3]
[348985226,1736916643524,-500.0,0.00019589,3]
[348985227,1736916643534,-13667.5,0.00019589,3]
[348985228,1736916643544,-500.0,0.00019589,3]
[348985229,1736916643553,-500.0,0.00019589,3]
[348985230,1736916643563,-500.0,0.00019589,3]
[348985231,1736916643573,-655.22,0.00019589,3]
[348985232,1736916643583,-1080.86,0.00019589,3]
[348985233,1736916643593,-500.0,0.00019589,3]
[348985234,1736916643603,-620.86320055,0.00019589,3]
[348985235,1736916643614,-500.0,0.00019589,3]
[348985236,1736916643624,-500.0,0.00019589,3]
[348985237,1736916643634,-500.0,0.00019589,3]
[348985239,1736916643643,-500.0,0.00019589,3]
[348985241,1736916643657,-500.0,0.00019589,3]
[348985243,1736916643667,-1373.43,0.00019589,3]
[348985245,1736916643676,-500.0,0.00019589,3]
[348985247,1736916643685,-511.11992767,0.00019589,3]
[348985248,1736916643697,-1827.85,0.00019589,3]
[348985250,1736916643707,-500.0,0.00019589,3]
[348985251,1736916643716,-500.0,0.00019589,3]
[348985253,1736916643725,-500.0,0.00019589,3]
[348985255,1736916643735,-599.91,0.00019589,3]
[348985256,1736916643745,-500.0,0.00019589,3]
[348985258,1736916643755,-712.76,0.00019589,3]
[348985260,1736916643765,-500.0,0.00019589,3]
[348985261,1736916643774,-500.0,0.00019589,3]
[348985263,1736916643783,-151.0,0.00019589,2]
[348985264,1736916643793,-807.76,0.00019589,3]
[348985266,1736916643803,-151.0,0.00019589,2]
[348985268,1736916643813,-500.0,0.00019589,3]
[348985269,1736916643822,-684.89,0.00019589,3]
[348985271,1736916643832,-500.0,0.00019589,3]
[348985273,1736916643842,-151.0,0.00019589,2]
[348985274,1736916643851,-151.0,0.00019589,2]
[348985276,1736916643862,-151.0,0.00019589,2]
[348985278,1736916643871,-151.0,0.00019589,2]
[348985280,1736916643880,-1567.61,0.00019589,3]
[348985282,1736916643889,-167.913452,0.00019589,2]
[348985283,1736916643899,-500.0,0.00019589,3]
[348985285,1736916643908,-926.078604,0.00019589,2]
[348985287,1736916643918,-926.078604,0.00019589,2]
[348985288,1736916643927,-926.078604,0.00019589,2]
[348985290,1736916643936,-926.078604,0.00019589,2]
[348985292,1736916643947,-159.319831,0.00019589,2]
[348985293,1736916643960,-500.0,0.00019589,3]
[348985295,1736916643969,-500.0,0.00019589,3]
[348985297,1736916643979,-500.0,0.00019589,3]
[348985299,1736916643989,-500.0,0.00019589,3]
[348985301,1736916643999,-757.07,0.00019589,3]
[348985302,1736916644009,-500.0,0.00019589,3]
[348985304,1736916644019,-706.38,0.00019589,3]
[348985306,1736916644029,-500.0,0.00019589,3]
[348985307,1736916644039,-500.0,0.00019589,3]
[348985309,1736916644048,-500.0,0.00019589,3]
[348985311,1736916644059,-500.0,0.00019589,3]
[348985312,1736916644069,-524.24,0.00019589,3]
[348985313,1736916644079,-3983.37,0.00019589,3]
[348985314,1736916644088,-1461.541656,0.00019589,2]
[348985316,1736916644099,-398.26,0.00019589,3]
[348985318,1736916644108,-500.0,0.00019589,3]
[348985320,1736916644117,-1461.541656,0.00019589,2]
[348985322,1736916644127,-500.0,0.00019589,3]
[348985324,1736916644137,-500.0,0.00019589,3]
[348985326,1736916644146,-500.0,0.00019589,3]
[348985328,1736916644156,-4712.04,0.00019589,3]
[348985330,1736916644166,-5135.68,0.00019589,2]
[348985332,1736916644175,-624.76,0.00019589,3]
[348985334,1736916644185,-500.0,0.00019589,3]
[348985336,1736916644194,-673.49,0.00019589,3]
[348985338,1736916644203,-500.0,0.00019589,3]
[348985340,1736916644213,-500.0,0.00019589,3]
[348985342,1736916644222,-610.45,0.00019589,3]
[348985344,1736916644232,-500.0,0.00019589,3]
[348985346,1736916644241,-550.77,0.00019589,3]
[348985347,1736916644250,-2486.58,0.00019589,3]
[348985348,1736916644259,-151.0,0.00019589,2]
[348985349,1736916644269,-500.0,0.00019589,3]
[348985350,1736916644278,-151.0,0.00019589,2]
[348985351,1736916644288,-500.0,0.00019589,3]
[348985352,1736916644297,-154.52,0.00019589,2]
[348985353,1736916644306,-243.22012971,0.0001959,2]
[348985354,1736916644316,-151.0,0.000197,2]
[348985355,1736916644325,-500.0,0.00019721,2]
[348985356,1736916644334,-156.08035,0.00019726,2]
[348985357,1736916644343,-151.0,0.00019726,2]
[348985358,1736916644354,-181.5,0.00019726,3]
[348985359,1736916644363,-500.0,0.00019726,3]
[348985360,1736916644373,-505.27912168,0.00019726,3]
[348985361,1736916644382,-742.49,0.00019726,3]
[348985362,1736916644392,-500.0,0.00019726,3]
[348985363,1736916644401,-169.24,0.00019726,3]
[348985364,1736916644411,-151.0,0.00019726,2]
[348985365,1736916644420,-500.0,0.00019726,3]
[348985366,1736916644430,-594.61401294,0.00019726,3]
[348985367,1736916644439,-500.0,0.00019726,3]
[348985368,1736916644450,-631.69,0.00019726,3]
[348985369,1736916644459,-500.0,0.00019726,3]
[348985370,1736916644469,-151.0,0.00019726,2]
[348985371,1736916644478,-550.31,0.00019726,3]
[348985372,1736916644489,-500.0,0.00019726,3]
[348985373,1736916644498,-500.0,0.00019726,3]
[348985374,1736916644507,-500.0,0.00019726,3]
[348985375,1736916644517,-500.0,0.00019726,3]
[348985376,1736916644526,-500.0,0.00019726,3]
[348985377,1736916644535,-500.0,0.00019726,3]
[348985378,1736916644545,-500.0,0.00019726,3]
[348985379,1736916644555,-352.92874141,0.00019726,3]
[348985380,1736916644567,-500.0,0.00019726,3]
[348985381,1736916644576,-691.61,0.00019726,3]
[348985382,1736916644585,-500.0,0.00019726,3]
[348985383,1736916644595,-500.0,0.00019726,3]
[348985384,1736916644604,-636.0234188,0.00019726,3]
[348985385,1736916644613,-500.0,0.00019726,3]
[348985386,1736916644623,-500.0,0.00019726,3]
[348985387,1736916644632,-500.0,0.00019726,3]
[348985388,1736916644641,-474.469349,0.00019726,2]
[348985389,1736916644651,-474.469349,0.00019726,2]
[348985390,1736916644660,-500.0,0.00019726,3]
[348985391,1736916644669,-500.0,0.00019726,3]
[348985392,1736916644679,-205.204769,0.00019726,2]
[348985393,1736916644688,-205.204769,0.00019726,2]
[348985394,1736916644697,-205.204769,0.00019726,2]
[348985395,1736916644707,-205.204769,0.00019726,2]
[348985396,1736916644716,-543.62958107,0.00019726,3]
[348985397,1736916644726,-500.0,0.00019726,3]
[348985398,1736916644735,-500.0,0.00019726,3]
[348985399,1736916644745,-500.0,0.00019726,3]
[348985400,1736916644754,-355.56,0.00019726,3]
[348985401,1736916644763,-500.0,0.00019726,3]
[348985402,1736916644772,-155.74779909,0.00019726,3]
[348985403,1736916644782,-500.0,0.00019726,3]
[348985404,1736916644791,-500.0,0.00019726,3]
[348985405,1736916644800,-450.9637981,0.00019726,3]
[348985406,1736916644810,-633.68,0.00019726,2]
[348985407,1736916644819,-228.219024,0.00019726,2]
[348985408,1736916644829,-228.219024,0.00019726,2]
[348985409,1736916644838,-228.219024,0.00019726,2]
[348985410,1736916644848,-228.219024,0.00019726,2]
[348985411,1736916644857,-500.0,0.00019726,3]
[348985412,1736916644867,-3854.09,0.00019726,3]
[348985413,1736916644876,-168.040208,0.00019726,2]
[348985414,1736916644885,-168.040208,0.00019726,2]
[348985415,1736916644895,-500.0,0.00019726,3]
[348985416,1736916644904,-468.82,0.00019726,3]
[348985417,1736916644914,-4218.29,0.00019726,3]
[348985418,1736916644924,-500.0,0.00019726,3]
[348985419,1736916644933,-926.75,0.00019726,3]
[348985420,1736916644942,-500.0,0.00019726,3]
[348985421,1736916644952,-1293.58,0.00019726,3]
[348985422,1736916644965,-500.0,0.00019726,3]
[348985423,1736916644974,-500.0,0.00019726,3]
[348985424,1736916644983,-500.0,0.00019726,3]
[348985425,1736916644994,-805.03,0.00019726,3]
[348985426,1736916645003,-472.47171797,0.00019726,3]
[348985427,1736916645013,-205.42317289,0.00019726,3]
[348985428,1736916645023,-500.0,0.00019726,3]
[348985429,1736916645033,-13667.5,0.00019726,3]
[348985430,1736916645044,-480.36,0.00019726,3]
[348985431,1736916645054,-500.0,0.00019726,3]
[348985432,1736916645067,-655.22,0.00019726,3]